[Event "*** Qualifier 1: Titled Tuesday 3|2 Blitz"]
[Site "Chess.com"]
[Date "2017.04.04"]
[Round "9"]
[White "stepanosinovsky"]
[Black "nihalsarin"]
[Result "0-1"]
[WhiteElo "2205"]
[BlackElo "2497"]
[TimeControl "180+2"]
[EndTime "15:06:52 PDT"]
[Termination "nihalsarin won by resignation"]

1. e4 {[%clk 0:03:02]} 1... Nc6 {[%clk 0:02:54]} 2. Nf3 {[%clk 0:03:03.1]} 2...
e5 {[%clk 0:02:51.3]} 3. Bb5 {[%clk 0:03:02.6]} 3... Nge7 {[%clk 0:02:52.7]} 4.
O-O {[%clk 0:03:02]} 4... Ng6 {[%clk 0:02:54.3]} 5. c3 {[%clk 0:03:00.2]} 5...
a6 {[%clk 0:02:54.1]} 6. Ba4 {[%clk 0:03:00.7]} 6... b5 {[%clk 0:02:52.7]} 7.
Bb3 {[%clk 0:02:59.5]} 7... Bc5 {[%clk 0:02:52]} 8. d4 {[%clk 0:02:59.7]} 8...
Be7 {[%clk 0:02:52.5]} 9. a4 {[%clk 0:02:57.7]} 9... b4 {[%clk 0:02:45.1]} 10.
Nbd2 {[%clk 0:02:49.9]} 10... Rb8 {[%clk 0:02:40.8]} 11. a5 {[%clk 0:02:45]}
11... d6 {[%clk 0:02:36.4]} 12. Qe2 {[%clk 0:02:29.3]} 12... O-O {[%clk
0:02:22.2]} 13. g3 {[%clk 0:02:29]} 13... bxc3 {[%clk 0:02:11.4]} 14. bxc3
{[%clk 0:02:29.1]} 14... Bg4 {[%clk 0:01:59.3]} 15. Bc4 {[%clk 0:02:24.9]} 15...
exd4 {[%clk 0:01:57.7]} 16. h3 {[%clk 0:01:38.1]} 16... Bxh3 {[%clk 0:01:54.7]}
17. cxd4 {[%clk 0:01:38.1]} 17... Bxf1 {[%clk 0:01:55.2]} 18. Nxf1 {[%clk
0:01:35.7]} 18... Bf6 {[%clk 0:01:56.5]} 19. Be3 {[%clk 0:01:31]} 19... Qe8
{[%clk 0:01:45]} 20. N1d2 {[%clk 0:01:28.4]} 20... Nb4 {[%clk 0:01:40.8]} 21.
Bxa6 {[%clk 0:00:36.1]} 21... Nc2 {[%clk 0:01:29.8]} 22. Ra2 {[%clk 0:00:32.2]}
22... Nxe3 {[%clk 0:01:27.3]} 23. Qxe3 {[%clk 0:00:31.7]} 23... c5 {[%clk
0:01:00.9]} 24. dxc5 {[%clk 0:00:22.7]} 24... Qc6 {[%clk 0:00:55.9]} 25. cxd6
{[%clk 0:00:20.5]} 25... Qxa6 {[%clk 0:00:56.2]} 26. e5 {[%clk 0:00:21]} 26...
Rfe8 {[%clk 0:00:41.1]} 27. d7 {[%clk 0:00:16]} 27... Re6 {[%clk 0:00:42]} 28.
Qd4 {[%clk 0:00:14]} 28... Nxe5 {[%clk 0:00:36.7]} 29. Nxe5 {[%clk 0:00:05.7]}
29... Rxe5 {[%clk 0:00:37.6]} 30. Kg2 {[%clk 0:00:06.1]} 30... Qb7+ {[%clk
0:00:38.5]} 31. Nf3 {[%clk 0:00:05.4]} 31... Rd5 {[%clk 0:00:38]} 32. a6 {[%clk
0:00:02.7]} 32... Rxd4 {[%clk 0:00:37.3]} 33. axb7 {[%clk 0:00:03.8]} 33... Rxd7
{[%clk 0:00:39]} 0-1

[Event "*** Qualifier 1: Titled Tuesday 3|2 Blitz"]
[Site "Chess.com"]
[Date "2017.04.04"]
[Round "9"]
[White "AkshatChandra"]
[Black "Duhless"]
[Result "1-0"]
[WhiteElo "2655"]
[BlackElo "2712"]
[TimeControl "180+2"]
[EndTime "15:07:01 PDT"]
[Termination "AkshatChandra won by checkmate"]

1. e4 {[%clk 0:03:01.9]} 1... g6 {[%clk 0:03:00.8]} 2. d4 {[%clk 0:03:02.7]}
2... Bg7 {[%clk 0:03:02.2]} 3. Nc3 {[%clk 0:03:02]} 3... d6 {[%clk 0:03:03.4]}
4. Be3 {[%clk 0:03:02.8]} 4... a6 {[%clk 0:03:04.2]} 5. Qd2 {[%clk 0:03:03.4]}
5... b5 {[%clk 0:03:05]} 6. h4 {[%clk 0:03:04.4]} 6... Nf6 {[%clk 0:03:05.5]} 7.
f3 {[%clk 0:03:03.6]} 7... h5 {[%clk 0:03:06.6]} 8. O-O-O {[%clk 0:03:03.4]}
8... Nbd7 {[%clk 0:03:07.6]} 9. Nh3 {[%clk 0:02:59.7]} 9... Nb6 {[%clk
0:03:08.5]} 10. d5 {[%clk 0:02:50.2]} 10... Bxh3 {[%clk 0:02:54.9]} 11. Rxh3
{[%clk 0:02:49.2]} 11... Rc8 {[%clk 0:02:35.6]} 12. a3 {[%clk 0:02:37.5]} 12...
Nbd7 {[%clk 0:02:22.8]} 13. Kb1 {[%clk 0:02:33.4]} 13... c6 {[%clk 0:02:22.5]}
14. dxc6 {[%clk 0:02:33.3]} 14... Rxc6 {[%clk 0:02:23.1]} 15. Nd5 {[%clk
0:02:32.3]} 15... Nxd5 {[%clk 0:01:59.6]} 16. exd5 {[%clk 0:02:31.8]} 16... Rc8
{[%clk 0:01:59.3]} 17. Bd4 {[%clk 0:02:22.5]} 17... Bxd4 {[%clk 0:01:38]} 18.
Qxd4 {[%clk 0:02:24.4]} 18... O-O {[%clk 0:01:39.5]} 19. g4 {[%clk 0:02:19]}
19... hxg4 {[%clk 0:01:38.8]} 20. fxg4 {[%clk 0:02:17.4]} 20... Qb6 {[%clk
0:01:37.2]} 21. Qd2 {[%clk 0:02:16.8]} 21... Kg7 {[%clk 0:01:33.6]} 22. h5
{[%clk 0:02:11.1]} 22... Rh8 {[%clk 0:01:34.3]} 23. h6+ {[%clk 0:02:08.8]} 23...
Kh7 {[%clk 0:01:34]} 24. g5 {[%clk 0:02:10.7]} 24... Ne5 {[%clk 0:01:35]} 25.
Re3 {[%clk 0:02:04.8]} 25... Rc7 {[%clk 0:01:34.5]} 26. Re4 {[%clk 0:01:59]}
26... Rf8 {[%clk 0:01:32.5]} 27. Rf4 {[%clk 0:01:53.8]} 27... Qc5 {[%clk
0:01:27.1]} 28. Bd3 {[%clk 0:01:41.6]} 28... a5 {[%clk 0:01:19.7]} 29. Rdf1
{[%clk 0:01:37.4]} 29... b4 {[%clk 0:01:04]} 30. a4 {[%clk 0:01:32.1]} 30... Kg8
{[%clk 0:00:51.2]} 31. Bb5 {[%clk 0:01:11.5]} 31... Rfc8 {[%clk 0:00:51.5]} 32.
Bc6 {[%clk 0:01:02.9]} 32... Nxc6 {[%clk 0:00:40]} 33. Rxf7 {[%clk 0:00:50.7]}
33... Kh8 {[%clk 0:00:19.2]} 34. h7 {[%clk 0:00:35.2]} 34... Qd4 {[%clk
0:00:02.9]} 35. Rf8+ {[%clk 0:00:31]} 35... Rxf8 {[%clk 0:00:03.9]} 36. Rxf8+
{[%clk 0:00:32.9]} 36... Kxh7 {[%clk 0:00:05.7]} 37. Qh2+ {[%clk 0:00:33.2]}
37... Kg7 {[%clk 0:00:07.6]} 38. Qh8# {[%clk 0:00:34.1]} 1-0

[Event "*** Qualifier 1: Titled Tuesday 3|2 Blitz"]
[Site "Chess.com"]
[Date "2017.04.04"]
[Round "9"]
[White "GMHess"]
[Black "severomorskij"]
[Result "0-1"]
[WhiteElo "2590"]
[BlackElo "2653"]
[TimeControl "180+2"]
[EndTime "15:07:01 PDT"]
[Termination "severomorskij won by resignation"]

1. c4 {[%clk 0:02:57.8]} 1... e5 {[%clk 0:02:59.6]} 2. Nc3 {[%clk 0:02:58]} 2...
Bb4 {[%clk 0:03:00.4]} 3. Nf3 {[%clk 0:02:59.1]} 3... Bxc3 {[%clk 0:03:00.8]} 4.
dxc3 {[%clk 0:02:59.5]} 4... d6 {[%clk 0:03:01.6]} 5. g3 {[%clk 0:02:56]} 5...
f5 {[%clk 0:02:56.6]} 6. Bg2 {[%clk 0:02:56.1]} 6... Nf6 {[%clk 0:02:57.7]} 7.
O-O {[%clk 0:02:56.5]} 7... Nc6 {[%clk 0:02:56.3]} 8. b4 {[%clk 0:02:49.2]} 8...
O-O {[%clk 0:02:47.9]} 9. c5 {[%clk 0:02:41.8]} 9... e4 {[%clk 0:02:12.1]} 10.
Nd4 {[%clk 0:02:34.6]} 10... dxc5 {[%clk 0:02:11.2]} 11. bxc5 {[%clk 0:02:18.2]}
11... Qe7 {[%clk 0:02:10.7]} 12. Qb3+ {[%clk 0:02:13.2]} 12... Kh8 {[%clk
0:02:09.5]} 13. Rd1 {[%clk 0:02:09.3]} 13... h6 {[%clk 0:01:52.3]} 14. h3 {[%clk
0:01:34.6]} 14... Kh7 {[%clk 0:01:17.8]} 15. Rb1 {[%clk 0:01:28.2]} 15... Rd8
{[%clk 0:01:14.7]} 16. Ba3 {[%clk 0:00:29]} 16... e3 {[%clk 0:00:52.2]} 17. f4
{[%clk 0:00:27.1]} 17... Ne4 {[%clk 0:00:46]} 18. Kh2 {[%clk 0:00:17.5]} 18...
Nxd4 {[%clk 0:00:38.8]} 19. cxd4 {[%clk 0:00:16.1]} 19... Nd2 {[%clk 0:00:39.7]}
20. Qc3 {[%clk 0:00:10.2]} 20... Nxb1 {[%clk 0:00:40]} 21. Rxb1 {[%clk
0:00:11.3]} 21... c6 {[%clk 0:00:37.7]} 22. Rb3 {[%clk 0:00:10.5]} 22... Be6
{[%clk 0:00:22.2]} 23. Qxe3 {[%clk 0:00:10.3]} 23... Qd7 {[%clk 0:00:22.4]} 24.
Rxb7 {[%clk 0:00:10.3]} 24... Qxb7 {[%clk 0:00:21.5]} 25. Qxe6 {[%clk
0:00:11.9]} 25... Qc8 {[%clk 0:00:16.7]} 26. Qxc8 {[%clk 0:00:08.4]} 26... Raxc8
{[%clk 0:00:17.1]} 27. e3 {[%clk 0:00:08.6]} 27... Re8 {[%clk 0:00:17.2]} 28.
Bc1 {[%clk 0:00:08.8]} 28... Re6 {[%clk 0:00:15.4]} 29. g4 {[%clk 0:00:09.5]}
29... g6 {[%clk 0:00:16.2]} 30. Kg3 {[%clk 0:00:09.9]} 30... Rb8 {[%clk
0:00:16.8]} 31. d5 {[%clk 0:00:08.9]} 31... cxd5 {[%clk 0:00:16.8]} 32. Bxd5
{[%clk 0:00:10.8]} 32... Re7 {[%clk 0:00:17.3]} 33. c6 {[%clk 0:00:11.1]} 33...
Rb1 {[%clk 0:00:16.5]} 34. c7 {[%clk 0:00:03.6]} 34... Rxc1 {[%clk 0:00:15.3]}
0-1

[Event "*** Qualifier 1: Titled Tuesday 3|2 Blitz"]
[Site "Chess.com"]
[Date "2017.04.04"]
[Round "9"]
[White "Vamostodorecto"]
[Black "Fiona"]
[Result "1-0"]
[WhiteElo "2340"]
[BlackElo "2151"]
[TimeControl "180+2"]
[EndTime "15:07:11 PDT"]
[Termination "Vamostodorecto won by resignation"]

1. d4 {[%clk 0:03:02]} 1... d6 {[%clk 0:02:52.7]} 2. c4 {[%clk 0:02:56.8]} 2...
f5 {[%clk 0:02:47.4]} 3. Nc3 {[%clk 0:02:54]} 3... Nf6 {[%clk 0:02:48.2]} 4. Nf3
{[%clk 0:02:51.1]} 4... g6 {[%clk 0:02:43.2]} 5. h4 {[%clk 0:02:40.7]} 5... h6
{[%clk 0:02:29]} 6. d5 {[%clk 0:02:34.2]} 6... c5 {[%clk 0:02:12.6]} 7. Nd2
{[%clk 0:02:25.2]} 7... e5 {[%clk 0:02:05]} 8. e4 {[%clk 0:02:18.3]} 8... f4
{[%clk 0:02:02.8]} 9. Bd3 {[%clk 0:02:09.8]} 9... Bg4 {[%clk 0:01:48.9]} 10. f3
{[%clk 0:02:05.9]} 10... Bd7 {[%clk 0:01:43.6]} 11. a3 {[%clk 0:02:02]} 11...
Nh5 {[%clk 0:01:40.7]} 12. Nf1 {[%clk 0:01:53.8]} 12... Be7 {[%clk 0:01:37.9]}
13. b4 {[%clk 0:01:47.6]} 13... Bxh4+ {[%clk 0:01:35.9]} 14. Kd2 {[%clk
0:01:45.2]} 14... b6 {[%clk 0:01:33.3]} 15. Rb1 {[%clk 0:01:42.2]} 15... Na6
{[%clk 0:01:26.8]} 16. Kc2 {[%clk 0:01:18.3]} 16... Rc8 {[%clk 0:01:20.4]} 17.
b5 {[%clk 0:01:13.3]} 17... Nc7 {[%clk 0:01:20.7]} 18. a4 {[%clk 0:01:12.4]}
18... Ra8 {[%clk 0:01:19]} 19. Bd2 {[%clk 0:01:09.1]} 19... a6 {[%clk
0:01:18.2]} 20. Be1 {[%clk 0:01:06]} 20... Bxe1 {[%clk 0:01:14.6]} 21. Qxe1
{[%clk 0:01:07.9]} 21... axb5 {[%clk 0:01:16.1]} 22. axb5 {[%clk 0:01:06.7]}
22... Qg5 {[%clk 0:01:11.7]} 23. Qf2 {[%clk 0:00:46.9]} 23... O-O {[%clk
0:01:03.2]} 24. Nd2 {[%clk 0:00:44.8]} 24... Ra2+ {[%clk 0:00:55.5]} 25. Nxa2
{[%clk 0:00:44.1]} 25... Ra8 {[%clk 0:00:47.5]} 26. Nc3 {[%clk 0:00:41.8]} 26...
Rf8 {[%clk 0:00:42.1]} 27. Ra1 {[%clk 0:00:37.7]} 27... Ng3 {[%clk 0:00:29.2]}
28. Rhe1 {[%clk 0:00:36.1]} 28... Ne8 {[%clk 0:00:29.3]} 29. Ra7 {[%clk
0:00:36.2]} 29... Bc8 {[%clk 0:00:29.4]} 30. Ra8 {[%clk 0:00:34.7]} 30... Bd7
{[%clk 0:00:28.6]} 31. Rb8 {[%clk 0:00:34.9]} 31... h5 {[%clk 0:00:27]} 32. Rxb6
{[%clk 0:00:33.8]} 32... h4 {[%clk 0:00:26.6]} 33. Rb7 {[%clk 0:00:33.9]} 33...
Bc8 {[%clk 0:00:27.3]} 34. Rb8 {[%clk 0:00:34.4]} 34... Bd7 {[%clk 0:00:27.6]}
35. b6 {[%clk 0:00:35.6]} 35... h3 {[%clk 0:00:27.6]} 36. gxh3 {[%clk
0:00:35.3]} 36... Bxh3 {[%clk 0:00:29.5]} 37. b7 {[%clk 0:00:35.5]} 37... Qe7
{[%clk 0:00:26.2]} 38. Rb1 {[%clk 0:00:34.2]} 38... Kg7 {[%clk 0:00:12.4]} 39.
Ra8 {[%clk 0:00:32.6]} 39... Nc7 {[%clk 0:00:12.6]} 40. Rxf8 {[%clk 0:00:31.5]}
1-0

[Event "*** Qualifier 1: Titled Tuesday 3|2 Blitz"]
[Site "Chess.com"]
[Date "2017.04.04"]
[Round "9"]
[White "TenisMaster"]
[Black "daro94"]
[Result "1/2-1/2"]
[WhiteElo "2658"]
[BlackElo "2706"]
[TimeControl "180+2"]
[EndTime "15:07:23 PDT"]
[Termination "Game drawn by repetition"]

1. e4 {[%clk 0:03:02]} 1... e5 {[%clk 0:03:00.6]} 2. Nf3 {[%clk 0:03:02.5]} 2...
Nc6 {[%clk 0:03:02.1]} 3. Bb5 {[%clk 0:03:03.3]} 3... Nf6 {[%clk 0:03:03.4]} 4.
d3 {[%clk 0:02:59.5]} 4... Bc5 {[%clk 0:03:03.6]} 5. O-O {[%clk 0:02:54.2]} 5...
d6 {[%clk 0:03:03.8]} 6. h3 {[%clk 0:02:42.3]} 6... O-O {[%clk 0:03:03.5]} 7. c3
{[%clk 0:02:25.3]} 7... Ne7 {[%clk 0:03:01.5]} 8. d4 {[%clk 0:02:22.6]} 8... Bb6
{[%clk 0:03:02.9]} 9. Bd3 {[%clk 0:02:13.8]} 9... Nc6 {[%clk 0:03:03.4]} 10. d5
{[%clk 0:02:10.9]} 10... Ne7 {[%clk 0:03:04.5]} 11. c4 {[%clk 0:02:08.6]} 11...
Ng6 {[%clk 0:03:03.1]} 12. Nc3 {[%clk 0:02:08.6]} 12... a5 {[%clk 0:02:58.9]}
13. Be3 {[%clk 0:01:31.8]} 13... Bxe3 {[%clk 0:02:44.7]} 14. fxe3 {[%clk
0:01:33.7]} 14... Bd7 {[%clk 0:02:42.7]} 15. Rc1 {[%clk 0:01:32.5]} 15... c6
{[%clk 0:02:43.5]} 16. Qd2 {[%clk 0:01:30.4]} 16... h6 {[%clk 0:02:36]} 17. Kh2
{[%clk 0:01:30]} 17... Qe7 {[%clk 0:02:21]} 18. Ng1 {[%clk 0:01:20.8]} 18... h5
{[%clk 0:01:59.2]} 19. Nge2 {[%clk 0:01:20.4]} 19... h4 {[%clk 0:01:58.6]} 20.
a4 {[%clk 0:01:10.4]} 20... Nh5 {[%clk 0:01:51.8]} 21. Rf3 {[%clk 0:01:10]}
21... Qg5 {[%clk 0:01:42]} 22. Rcf1 {[%clk 0:01:09]} 22... Ne7 {[%clk
0:01:32.7]} 23. Qe1 {[%clk 0:01:04.9]} 23... c5 {[%clk 0:01:20]} 24. Qf2 {[%clk
0:00:53.7]} 24... f6 {[%clk 0:01:04.9]} 25. b3 {[%clk 0:00:27.9]} 25... b6
{[%clk 0:01:02.5]} 26. Rf5 {[%clk 0:00:19.7]} 26... Nxf5 {[%clk 0:00:31.9]} 27.
exf5 {[%clk 0:00:21.6]} 27... Ng3 {[%clk 0:00:32.6]} 28. Nxg3 {[%clk 0:00:19.4]}
28... hxg3+ {[%clk 0:00:33.2]} 29. Qxg3 {[%clk 0:00:20.8]} 29... Qxg3+ {[%clk
0:00:34.7]} 30. Kxg3 {[%clk 0:00:22.5]} 30... Kf7 {[%clk 0:00:36.6]} 31. Ne4
{[%clk 0:00:22.9]} 31... Ke7 {[%clk 0:00:38.1]} 32. Nc3 {[%clk 0:00:14.9]} 32...
Rh8 {[%clk 0:00:39]} 33. Kh2 {[%clk 0:00:14.7]} 33... Rag8 {[%clk 0:00:40]} 34.
g4 {[%clk 0:00:15.3]} 34... Rh4 {[%clk 0:00:40.8]} 35. Rf3 {[%clk 0:00:14.6]}
35... Rgh8 {[%clk 0:00:41.8]} 36. Kg2 {[%clk 0:00:15.3]} 36... Be8 {[%clk
0:00:41.8]} 37. Ne4 {[%clk 0:00:15.5]} 37... Rf8 {[%clk 0:00:40.7]} 38. Ng3
{[%clk 0:00:16]} 38... Rfh8 {[%clk 0:00:39.8]} 39. Nf1 {[%clk 0:00:16]} 39...
Bd7 {[%clk 0:00:39.3]} 40. Be4 {[%clk 0:00:17]} 40... Be8 {[%clk 0:00:39.4]} 41.
Bd3 {[%clk 0:00:17.9]} 41... Bd7 {[%clk 0:00:39.7]} 42. Nd2 {[%clk 0:00:18.4]}
42... Be8 {[%clk 0:00:40.3]} 43. Rg3 {[%clk 0:00:19.3]} 43... Bf7 {[%clk
0:00:35.9]} 44. Nf3 {[%clk 0:00:19.6]} 44... R4h7 {[%clk 0:00:36.9]} 45. Be4
{[%clk 0:00:16.5]} 45... Be8 {[%clk 0:00:37.8]} 46. Bd3 {[%clk 0:00:16.5]} 46...
Bf7 {[%clk 0:00:38.7]} 47. Be4 {[%clk 0:00:16.9]} 47... Be8 {[%clk 0:00:40.1]}
48. Bd3 {[%clk 0:00:17.2]} 48... Bf7 {[%clk 0:00:41.6]} 49. Be4 {[%clk
0:00:16.8]} 49... Be8 {[%clk 0:00:43.1]} 50. Bd3 {[%clk 0:00:15.3]} 50... Bf7
{[%clk 0:00:44.6]} 1/2-1/2

[Event "*** Qualifier 1: Titled Tuesday 3|2 Blitz"]
[Site "Chess.com"]
[Date "2017.04.04"]
[Round "9"]
[White "Outsmiter"]
[Black "poummba"]
[Result "1-0"]
[WhiteElo "2129"]
[BlackElo "2373"]
[TimeControl "180+2"]
[EndTime "15:07:29 PDT"]
[Termination "Outsmiter won by resignation"]

1. e4 {[%clk 0:03:01.6]} 1... c6 {[%clk 0:03:00.9]} 2. d4 {[%clk 0:03:02.2]}
2... d5 {[%clk 0:03:02.6]} 3. exd5 {[%clk 0:03:03.2]} 3... cxd5 {[%clk
0:03:03.9]} 4. Nf3 {[%clk 0:03:04.2]} 4... g6 {[%clk 0:03:04.7]} 5. Bd3 {[%clk
0:03:01.5]} 5... Nc6 {[%clk 0:03:06]} 6. c3 {[%clk 0:03:01.9]} 6... Bg7 {[%clk
0:03:07.6]} 7. O-O {[%clk 0:03:02.9]} 7... Nh6 {[%clk 0:03:09.2]} 8. Re1 {[%clk
0:03:03.7]} 8... O-O {[%clk 0:03:10.4]} 9. Bf4 {[%clk 0:02:55.6]} 9... f6 {[%clk
0:03:11.6]} 10. Nbd2 {[%clk 0:02:55.1]} 10... Nf7 {[%clk 0:03:11.2]} 11. Bg3
{[%clk 0:02:54.3]} 11... e5 {[%clk 0:03:12.3]} 12. dxe5 {[%clk 0:02:52.7]} 12...
fxe5 {[%clk 0:03:14.2]} 13. Bb5 {[%clk 0:02:52.6]} 13... e4 {[%clk 0:03:14.8]}
14. Nd4 {[%clk 0:02:40.3]} 14... Nxd4 {[%clk 0:03:07.3]} 15. cxd4 {[%clk
0:02:42.2]} 15... Bxd4 {[%clk 0:03:06.6]} 16. Qb3 {[%clk 0:02:35.2]} 16... Qb6
{[%clk 0:02:36.7]} 17. Qxd5 {[%clk 0:02:11.3]} 17... Be6 {[%clk 0:02:37.3]} 18.
Qxe4 {[%clk 0:02:10.1]} 18... Ng5 {[%clk 0:02:25.3]} 19. Qd3 {[%clk 0:02:07.7]}
19... Rad8 {[%clk 0:02:16.7]} 20. Qe2 {[%clk 0:01:46.4]} 20... Bxb2 {[%clk
0:01:02.2]} 21. Rab1 {[%clk 0:01:46.2]} 21... Qd4 {[%clk 0:00:54.1]} 22. h4
{[%clk 0:01:37.6]} 22... Qxd2 {[%clk 0:00:28.2]} 23. hxg5 {[%clk 0:01:29.4]}
23... Qxe2 {[%clk 0:00:23.8]} 24. Rxe2 {[%clk 0:01:31.3]} 24... Bxa2 {[%clk
0:00:07.9]} 25. Rbxb2 {[%clk 0:01:30.1]} 25... Rd1+ {[%clk 0:00:08.9]} 26. Kh2
{[%clk 0:01:30.2]} 26... Bd5 {[%clk 0:00:09.5]} 27. Rbd2 {[%clk 0:01:25.6]}
27... Rxd2 {[%clk 0:00:10.8]} 28. Rxd2 {[%clk 0:01:27.5]} 28... Be6 {[%clk
0:00:07]} 29. Rd6 {[%clk 0:01:24.5]} 29... Bf5 {[%clk 0:00:06]} 30. Bd7 {[%clk
0:01:23]} 30... Bxd7 {[%clk 0:00:03.1]} 31. Rxd7 {[%clk 0:01:24.9]} 31... Rf7
{[%clk 0:00:05]} 32. Rd8+ {[%clk 0:01:21.8]} 32... Rf8 {[%clk 0:00:05.5]} 33.
Rd6 {[%clk 0:01:05.7]} 33... b6 {[%clk 0:00:03.7]} 34. Be5 {[%clk 0:01:04.1]}
34... Kf7 {[%clk 0:00:03.4]} 35. f4 {[%clk 0:01:01.3]} 35... Re8 {[%clk
0:00:04.2]} 36. Rc6 {[%clk 0:01:01.4]} 36... Re7 {[%clk 0:00:04.6]} 37. Kg3
{[%clk 0:01:00.9]} 37... Rd7 {[%clk 0:00:04.8]} 38. Kf3 {[%clk 0:01:00.7]} 38...
Rb7 {[%clk 0:00:05.2]} 39. Ke4 {[%clk 0:00:59.9]} 39... b5 {[%clk 0:00:06.7]}
40. Rc7+ {[%clk 0:00:58]} 40... Rxc7 {[%clk 0:00:07.4]} 41. Bxc7 {[%clk
0:00:59.9]} 41... Ke6 {[%clk 0:00:08.9]} 42. g4 {[%clk 0:00:59.6]} 42... b4
{[%clk 0:00:09.2]} 43. Kd4 {[%clk 0:00:59.3]} 43... b3 {[%clk 0:00:09.2]} 44.
Kc3 {[%clk 0:00:59.2]} 44... Kd5 {[%clk 0:00:10.7]} 45. Kxb3 {[%clk 0:01:00]}
45... Ke4 {[%clk 0:00:12.1]} 46. Be5 {[%clk 0:00:58.3]} 46... Kd5 {[%clk
0:00:04.4]} 47. Kb4 {[%clk 0:00:56.8]} 47... Ke4 {[%clk 0:00:05.8]} 48. Kc4
{[%clk 0:00:53.5]} 48... Kf3 {[%clk 0:00:07]} 49. f5 {[%clk 0:00:52.4]} 49...
Kxg4 {[%clk 0:00:08.4]} 50. f6 {[%clk 0:00:52.4]} 1-0

[Event "*** Qualifier 1: Titled Tuesday 3|2 Blitz"]
[Site "Chess.com"]
[Date "2017.04.04"]
[Round "9"]
[White "Bugcrusher"]
[Black "MorpheusPro"]
[Result "1-0"]
[WhiteElo "2451"]
[BlackElo "2106"]
[TimeControl "180+2"]
[EndTime "15:07:31 PDT"]
[Termination "Bugcrusher won by resignation"]

1. d4 {[%clk 0:03:02]} 1... d5 {[%clk 0:03:00.1]} 2. c4 {[%clk 0:03:02.1]} 2...
c6 {[%clk 0:02:59.7]} 3. cxd5 {[%clk 0:03:01.9]} 3... cxd5 {[%clk 0:03:00.1]} 4.
Bf4 {[%clk 0:03:03]} 4... Nc6 {[%clk 0:03:00.6]} 5. e3 {[%clk 0:03:03.4]} 5...
Nf6 {[%clk 0:03:01]} 6. Nc3 {[%clk 0:03:03.3]} 6... e6 {[%clk 0:02:57]} 7. Bd3
{[%clk 0:03:00.2]} 7... Be7 {[%clk 0:02:55.3]} 8. h3 {[%clk 0:02:57.9]} 8... a6
{[%clk 0:02:55.4]} 9. Rc1 {[%clk 0:02:57.3]} 9... O-O {[%clk 0:02:55.1]} 10. a3
{[%clk 0:02:57.4]} 10... h6 {[%clk 0:02:48]} 11. Nf3 {[%clk 0:02:57.5]} 11...
Bd6 {[%clk 0:02:48.3]} 12. Bxd6 {[%clk 0:02:56.4]} 12... Qxd6 {[%clk 0:02:48.3]}
13. O-O {[%clk 0:02:57.5]} 13... e5 {[%clk 0:02:49]} 14. dxe5 {[%clk 0:02:56.6]}
14... Nxe5 {[%clk 0:02:49.5]} 15. Nxe5 {[%clk 0:02:57.7]} 15... Qxe5 {[%clk
0:02:50.2]} 16. Be2 {[%clk 0:02:53.2]} 16... Bd7 {[%clk 0:02:39.6]} 17. Bf3
{[%clk 0:02:53.8]} 17... Bc6 {[%clk 0:02:39.8]} 18. Qd2 {[%clk 0:02:47.4]} 18...
Rad8 {[%clk 0:02:39.3]} 19. Rfd1 {[%clk 0:02:48]} 19... Ne4 {[%clk 0:02:16.4]}
20. Bxe4 {[%clk 0:02:41.7]} 20... dxe4 {[%clk 0:02:16.3]} 21. Qxd8 {[%clk
0:02:42.5]} 21... Rxd8 {[%clk 0:02:16.3]} 22. Rxd8+ {[%clk 0:02:43.5]} 22... Kh7
{[%clk 0:02:16.7]} 23. Rd4 {[%clk 0:02:43.9]} 23... f5 {[%clk 0:02:15.2]} 24.
Rcd1 {[%clk 0:02:35.5]} 24... f4 {[%clk 0:02:10.8]} 25. exf4 {[%clk 0:02:34.1]}
25... Qxf4 {[%clk 0:02:07]} 26. Nxe4 {[%clk 0:02:26.3]} 26... Bxe4 {[%clk
0:02:03.9]} 27. Re1 {[%clk 0:02:27.3]} 27... a5 {[%clk 0:01:43.2]} 28. Rdxe4
{[%clk 0:02:26.3]} 28... Qd2 {[%clk 0:01:42.8]} 29. R1e2 {[%clk 0:02:25.6]}
29... Qc1+ {[%clk 0:01:40.3]} 30. Kh2 {[%clk 0:02:25.6]} 30... Qc7+ {[%clk
0:01:41.3]} 31. g3 {[%clk 0:02:26.4]} 31... b5 {[%clk 0:01:34.8]} 32. h4 {[%clk
0:02:24.6]} 32... Qc5 {[%clk 0:01:25.5]} 33. Re5 {[%clk 0:02:15.5]} 33... Qc4
{[%clk 0:01:21.1]} 34. Kg2 {[%clk 0:01:56.5]} 34... Qc6+ {[%clk 0:01:17.6]} 35.
Kh2 {[%clk 0:01:50.6]} 35... Qc4 {[%clk 0:01:16.5]} 36. h5 {[%clk 0:01:45.4]}
36... b4 {[%clk 0:01:11.9]} 37. axb4 {[%clk 0:01:45.5]} 37... axb4 {[%clk
0:01:12.3]} 38. R2e4 {[%clk 0:01:22.7]} 38... Qc2 {[%clk 0:01:09.9]} 39. Rf4
{[%clk 0:01:08.2]} 39... Qxb2 {[%clk 0:01:02.9]} 40. Re8 {[%clk 0:01:08.5]}
40... Qa2 {[%clk 0:00:16.6]} 41. Rff8 {[%clk 0:01:05.8]} 41... g5 {[%clk
0:00:06.9]} 42. Re7+ {[%clk 0:01:04.3]} 1-0